bitfinex-derivatives/quotes_ETHF0:USTF0_20250730
["timestamp","ask_amount","ask_price","bid_price","bid_amount"]
[1753904659818,3.7193,3744.1,3743.3,1.33578]
[1753904660015,20.14521,3744.2,3743.8,0.53424]
[1753904660221,3.7193,3744.0,3743.9,0.53422]
[1753904660621,1.3892,3744.0,3743.8,0.53424]
[1753904660819,3.7193,3743.9,3743.8,0.53424]
[1753904661729,2.3301,3744.2,3744.1,0.5342]
[1753904662026,0.9007,3744.1,3744.0,1.91692]
[1753904662229,3.2078,3744.3,3743.7,1.3827]
[1753904662431,6.0264,3744.3,3744.2,0.53419]
[1753904662727,2.8186,3744.3,3744.2,0.53419]
[1753904663128,0.53417,3744.4,3744.1,0.5342]
[1753904663320,4.2535,3744.2,3743.6,1.4579]
[1753904663626,4.2535,3744.2,3741.6,2.39692036]
[1753904663627,0.53428,3743.7,3743.0,1.33592]
[1753904663825,6.9271,3743.5,3743.4,0.5343]
[1753904664031,0.9007,3743.5,3743.4,3.3749]
[1753904664220,3.7193,3743.9,3743.8,0.53425]
[1753904664724,0.9007,3743.8,3743.1,1.33588]
[1753904664924,3.7193,3743.7,3743.6,0.53427]
[1753904665124,0.53426,3743.8,3743.5,0.53429]
[1753904665325,3.7193,3743.6,3743.5,0.53429]
[1753904665528,0.9007,3743.6,3743.5,3.37489]
[1753904666030,6.9271,3743.6,3743.4,0.5343]
[1753904666239,3.7193,3743.5,3743.4,0.5343]
[1753904667037,3.7193,3743.5,3743.2,0.53433]
[1753904667038,3.7193,3743.4,3743.2,0.53433]
[1753904667238,3.7193,3743.3,3743.2,0.53433]
[1753904668331,3.7193,3743.3,3743.1,0.53435]
[1753904668531,19.53,3743.4,3743.2,0.53432]
[1753904669031,3.7726,3743.3,3743.2,0.53432]
[1753904669228,2.2283,3743.3,3743.2,1.83442]
[1753904669427,4.512,3744.0,3743.9,0.53423]
[1753904669640,5.22525622,3744.0,3743.9,1.3001]
[1753904669841,6.76955622,3744.0,3743.9,1.3001]
[1753904670040,7.69365622,3744.0,3743.8,0.53424]
[1753904670336,3.18154434,3743.9,3743.8,1.83434]
[1753904670531,4.48584555,3743.9,3743.8,1.83434]
[1753904670741,4.48584555,3743.9,3743.8,3.26254]
[1753904670742,1.63734555,3743.9,3743.8,3.26254]
[1753904671333,1.63734555,3743.9,3743.8,4.17204]
[1753904671638,19.483,3744.2,3744.1,0.53421]
[1753904671841,21.12086274,3744.2,3744.1,3.26251]
[1753904672240,3.18216274,3744.2,3744.1,3.26251]
[1753904672638,3.18216274,3744.2,3744.1,2.7283]
[1753904672833,4.48636274,3744.2,3744.1,2.7283]
[1753904673646,3.18216274,3744.2,3744.1,2.7283]
[1753904675143,0.71376274,3744.2,3744.1,3.6378]
[1753904675445,4.1319,3744.7,3744.6,3.26244]
[1753904675646,2.4684,3745.0,3744.9,1.83419]
[1753904675849,2.4684,3745.0,3744.9,3.26239]
[1753904675850,0.9241,3745.0,3744.9,3.26239]
[1753904676245,0.9241,3745.0,3744.6,1.44364]
[1753904676246,3.2078,3745.6,3745.5,0.53401]
[1753904676446,6.9804,3745.6,3745.5,0.53401]
[1753904677050,4.1319,3745.6,3745.5,3.26231]
[1753904677249,2.6083,3746.7,3746.3,0.53389]
[1753904677444,3.7726,3746.6,3746.4,0.53387]
[1753904677753,3.7726,3746.5,3746.4,0.53387]
[1753904678053,19.932,3746.7,3746.2,3.2078]
[1753904678252,21.7833,3746.6,3746.3,1.3001]
[1753904678441,0.53388,3746.4,3746.3,2.7283]
[1753904678643,0.53389,3746.3,3745.9,3.74175]
[1753904678841,3.7726,3746.1,3745.9,3.2078]
[1753904679046,1.3042,3745.9,3745.7,1.96218]
[1753904679244,0.95602655,3746.1,3745.4,4.5079]
[1753904679245,19.546,3746.0,3745.4,4.5079]
[1753904679451,3.7726,3745.8,3745.4,4.5079]
[1753904679657,20.07995,3746.0,3745.4,4.5079]
[1753904679658,3.7726,3745.5,3745.4,4.5079]
[1753904679853,0.53405,3745.2,3745.0,3.2078]
[1753904680055,3.7726,3745.1,3745.0,3.2078]
[1753904680654,23.3146,3745.1,3745.0,3.2078]
[1753904680858,23.3146,3745.1,3744.6,0.53414]
[1753904680859,3.7726,3745.0,3744.6,0.53414]
[1753904681155,2.8485,3744.9,3744.7,0.53412]
[1753904681350,2.8485,3744.9,3744.5,3.2078]
[1753904681351,3.7726,3744.6,3744.5,3.74195]
[1753904681555,3.7726,3744.6,3744.5,3.2078]
[1753904681766,0.9241,3744.6,3744.5,5.9361]
[1753904682055,0.9241,3744.7,3744.6,3.26244]
[1753904682354,0.9241,3744.7,3744.5,3.2078]
[1753904682355,3.7726,3744.7,3744.5,3.2078]
[1753904682553,0.9241,3744.9,3744.8,0.5341]
[1753904682758,19.528,3745.2,3744.8,2.7283]
[1753904682961,22.0034,3745.4,3745.3,3.26234]
[1753904683256,2.2283,3746.6,3745.3,1.4282]
[1753904683454,0.9241,3746.4,3745.8,1.4282]
[1753904683651,19.535,3746.5,3745.8,1.4282]
[1753904683848,1.3042,3746.3,3745.2,1.33511]
[1753904684048,3.7726,3745.2,3744.3,0.53418]
[1753904684254,3.2078,3744.7,3744.4,0.53415]
[1753904684457,3.7726,3745.2,3744.5,3.2078]
[1753904684651,3.2078,3745.3,3745.0,0.53408]
[1753904684856,19.823,3745.2,3744.9,0.53409]
[1753904685061,3.2078,3745.3,3745.0,0.53408]
[1753904685365,0.9241,3746.0,3745.2,0.53405]
[1753904685560,1.3042,3746.2,3745.6,0.53399]
[1753904685759,19.856,3746.1,3745.7,0.53397]
[1753904686063,3.2078,3745.8,3745.2,3.6378]
[1753904686363,3.2078,3745.8,3745.7,4.17178]
[1753904686563,3.2078,3745.8,3745.7,3.6378]
[1753904687057,19.85,3745.9,3745.8,0.53396]
[1753904687255,19.85,3745.9,3745.8,4.17176]
[1753904687455,19.85,3745.9,3745.8,3.6378]
[1753904687651,4.7521,3746.4,3746.2,2.2096]
[1753904687851,0.719283,3746.3,3746.2,3.6378]
[1753904688653,3.2078,3747.5,3746.6,2.74345]
[1753904688854,3.2078,3747.5,3746.5,39.7551]
[1753904689062,0.95602655,3747.7,3746.9,3.2078]
[1753904689258,1.5443,3747.4,3747.0,1.4013]
[1753904689569,3.7726,3747.3,3746.7,0.53384]
[1753904689865,2.8485,3747.3,3746.7,0.53384]
[1753904690056,4.7521,3747.1,3746.8,0.53382]
[1753904690256,3.2078,3747.1,3747.0,4.14469]
[1753904690764,3.2078,3748.0,3747.9,4.14457]
[1753904691264,0.95602655,3748.3,3748.1,0.53364]
[1753904691464,0.95602655,3748.5,3748.4,2.2096]
[1753904691661,4.7521,3748.9,3748.5,0.53358]
[1753904691863,0.95602655,3748.6,3748.5,4.14448]
[1753904692169,2.50032655,3748.8,3748.5,2.2096]
[1753904692460,2.50032655,3748.8,3748.6,2.2096]
[1753904692461,2.8485,3748.8,3748.6,2.2096]
[1753904692660,2.8485,3748.8,3748.2,2.2096]
[1753904692661,3.7726,3748.6,3748.2,2.2096]
[1753904692861,3.2078,3748.3,3748.2,2.2096]
[1753904693067,3.2078,3748.3,3747.7,4.14459]
[1753904693362,1.5443,3748.2,3747.7,3.6109]
[1753904693563,2.2283,3748.2,3747.8,2.2096]
[1753904693863,2.2283,3748.2,3747.2,0.21378975]
[1753904693864,4.7521,3747.9,3747.2,2.2096]
[1753904694063,1.0,3750.0,3746.5,2.74347]
[1753904694064,3.2078,3747.3,3746.5,2.74347]
[1753904694257,3.2078,3747.3,3746.3,3.2078]
[1753904694258,3.2078,3746.9,3746.3,3.2078]
[1753904694566,3.2078,3746.4,3745.4,0.9095]
[1753904694768,3.2078,3746.0,3745.3,3.6109]
[1753904695067,4.512,3746.2,3745.4,3.6109]
[1753904695364,3.2078,3746.2,3746.1,0.9095]
[1753904695568,3.2078,3746.2,3746.1,2.2096]
[1753904695758,3.2078,3746.2,3745.9,1.44345]
[1753904695959,3.2078,3746.2,3746.1,0.53392]
[1753904696169,3.2078,3746.2,3746.1,2.74352]
[1753904696370,3.2078,3746.2,3745.3,0.21107187]
[1753904696371,4.7521,3746.2,3745.4,2.2096]
[1753904696566,3.7726,3745.7,3745.5,0.53401]
[1753904696767,1.5443,3745.6,3745.5,0.53401]
[1753904697268,3.2078,3745.8,3744.8,0.40055009]
[1753904697269,3.2078,3745.8,3744.9,2.2096]
[1753904697465,0.9241,3745.2,3745.0,0.53408]
[1753904697665,1.5443,3745.4,3745.1,2.2096]
[1753904697865,3.2078,3745.6,3745.5,0.53401]
[1753904698067,3.2078,3745.6,3745.5,0.9095]
[1753904698372,3.7726,3745.5,3744.8,0.40055009]
[1753904698569,1.5443,3744.9,3744.8,0.40055009]
[1753904698869,3.2078,3745.6,3745.4,0.53402]
[1753904699173,3.2078,3745.6,3745.4,2.2494]
[1753904699365,3.2078,3746.0,3745.4,1.3322]
[1753904699566,6.9586,3746.5,3746.3,0.53389]
[1753904699764,1.3777,3746.4,3745.9,1.3322]
[1753904699963,4.7067,3746.0,3745.9,0.53395]
[1753904700163,1.3777,3746.4,3746.3,0.53389]
[1753904700367,6.9586,3746.4,3746.3,0.53389]
[1753904700567,3.2078,3746.4,3746.3,4.18529]
[1753904700968,3.2078,3746.8,3746.4,0.53388]
[1753904701171,4.7067,3747.2,3746.9,0.5338]
[1753904701474,1.4989,3747.0,3746.9,0.5338]
[1753904701668,3.7508,3747.0,3746.9,0.5338]
[1753904701869,3.2078,3747.2,3746.9,2.7832]
[1753904702071,4.7067,3747.2,3746.9,2.7832]
[1753904702270,1.4989,3747.1,3746.9,2.7832]
[1753904702472,4.28459,3747.1,3746.7,0.53383]
[1753904702668,42.1342,3747.9,3746.9,0.53381]
[1753904702669,3.7508,3747.0,3746.9,0.53381]
[1753904702875,0.53386,3746.6,3745.8,1.402]
[1753904703077,0.53386,3746.6,3745.6,1.33497]
[1753904703078,3.7508,3746.1,3745.9,0.53395]
[1753904703278,2.8766,3746.0,3745.9,0.53395]
[1753904703466,3.2078,3746.4,3746.2,0.53391]
[1753904703776,3.7508,3746.3,3746.2,0.53391]
[1753904704778,3.7508,3746.3,3744.9,2.38395]
[1753904704779,5.0,3746.3,3744.9,2.38395]
[1753904705078,3.7508,3745.2,3745.1,0.53407]
[1753904705277,3.2078,3745.3,3745.1,0.53405]
[1753904705466,3.74184,3745.3,3744.9,0.53409]
[1753904705976,2.3731,3745.1,3745.0,0.53407]
[1753904706175,3.7508,3745.1,3745.0,0.53407]
[1753904706471,3.74184,3745.3,3744.9,0.53409]
[1753904706677,3.7508,3744.9,3744.8,0.93465009]
[1753904706875,6.9586,3744.9,3744.8,0.93465009]
[1753904707174,6.9586,3744.9,3744.8,0.40055009]
[1753904708072,3.7508,3744.7,3743.9,2.2494]
[1753904708273,3.2078,3744.0,3743.9,2.78364]
[1753904708773,3.2078,3744.0,3743.9,3.78184]
[1753904708974,4.7067,3744.0,3743.9,1.53244]
[1753904709175,2.8766,3744.0,3743.9,1.53244]
[1753904709577,6.9586,3744.0,3743.9,0.9982]
[1753904709872,6.9586,3744.0,3743.0,2.7379]
[1753904709873,11.9586,3744.0,3743.3,2.38395]
[1753904710075,4.28507,3743.7,3743.6,2.38395]
[1753904710268,6.9586,3743.7,3743.6,2.91823]
[1753904710978,6.9586,3743.7,3743.6,0.53428]
[1753904711475,8.2078,3743.7,3743.3,3.35471425]
[1753904711675,4.28511,3743.4,3743.3,3.35471425]
[1753904711982,4.28511,3743.4,3742.4,5.72050233]
[1753904711983,1.179,3742.9,3742.5,0.53443]
[1753904712272,5.8857,3742.6,3742.4,0.53444]
[1753904712478,1.4989,3742.5,3742.4,0.53444]
[1753904712879,1.4989,3742.5,3742.4,1.45164]
[1753904713974,2.6779,3742.3,3742.0,0.9172]
[1753904714173,2.6779,3742.0,3741.9,0.53452]
[1753904714373,3.2078,3742.1,3741.9,0.53452]
[1753904714374,3.2078,3742.1,3741.9,4.21742]
[1753904714573,3.2078,3742.1,3742.0,0.9172]
[1753904714768,4.3868,3742.1,3742.0,0.9172]
[1753904714975,1.179,3742.0,3741.9,0.53452]
[1753904715172,2.6779,3742.0,3741.9,0.53452]
[1753904715372,2.3731,3742.0,3741.9,0.53452]
[1753904715574,3.5521,3742.0,3741.9,0.53452]
[1753904715776,2.6779,3741.9,3741.7,0.53455]
[1753904715978,3.5521,3741.9,3741.6,0.53456]
[1753904716186,1.4989,3741.9,3741.8,1.31807123]
[1753904716475,3.2078,3742.1,3742.0,2.2494]
[1753904716681,3.2078,3742.1,3742.0,3.6829]
[1753904717076,3.2078,3742.1,3742.0,2.2494]
[1753904717382,2.6779,3742.0,3741.9,0.53452]
[1753904717582,2.6779,3741.9,3741.8,0.93540123]
[1753904717881,2.6779,3741.9,3741.8,0.40087123]
[1753904718277,3.2078,3742.1,3742.0,2.2494]
[1753904718477,4.7067,3742.1,3741.9,0.53452]
[1753904718685,3.2078,3742.1,3742.0,2.2494]
[1753904719182,5.261,3742.5,3742.4,0.53445]
[1753904719378,0.53451,3742.0,3741.8,0.40087123]
[1753904719584,3.5521,3741.9,3741.8,0.40087123]
[1753904720586,2.2771,3741.8,3741.5,0.53456]
[1753904720881,2.2771,3741.5,3741.4,0.53459]
[1753904721187,2.2771,3741.5,3741.4,1.45179]
[1753904721680,3.2078,3741.6,3741.5,3.6829]
[1753904722982,3.986,3741.6,3741.4,1.45179]
[1753904723176,2.2771,3741.5,3741.4,1.45179]
[1753904723484,3.2078,3741.6,3741.5,2.2494]
[1753904723685,3.2078,3741.6,3741.5,3.6829]
[1753904723879,2.6674,3741.6,3741.5,3.6829]
[1753904724586,3.2078,3742.3,3742.2,1.45168]
[1753904724777,1.4989,3743.1,3743.0,0.53436]
[1753904724978,5.8649,3743.7,3743.6,0.53428]
[1753904725279,3.1513,3743.6,3743.5,0.53429]
[1753904725482,41.18,3743.7,3743.5,0.53429]
[1753904725483,0.38,3743.7,3743.5,0.53429]
[1753904725688,2.2771,3743.6,3743.5,0.53429]
[1753904726091,41.18,3743.7,3743.5,2.78369]
[1753904726389,0.38,3743.7,3743.6,3.6829]
[1753904726589,1.6524,3744.9,3744.7,0.53412]
[1753904726790,2.99796616,3744.8,3744.7,0.53412]
[1753904727493,2.21976616,3744.8,3744.7,2.78352]
[1753904727693,2.21976616,3744.8,3744.7,0.9172]
[1753904727898,0.72086616,3744.8,3744.7,0.9172]
[1753904728589,0.13913616,3744.8,3744.7,3.6829]
[1753904729588,2.47422655,3745.6,3744.8,1.33528]
[1753904729784,3.00821655,3745.6,3745.4,2.9324]
[1753904730091,2.4357,3745.6,3745.5,0.8865]
[1753904730790,42.3182,3745.9,3745.8,1.42047]
[1753904731088,43.76965,3745.9,3745.6,3.2078]
[1753904731389,2.4357,3745.8,3745.7,0.8865]
[1753904731782,4.16382655,3746.1,3745.6,3.74179]
[1753904731783,40.8,3746.0,3745.8,0.53397]
[1753904731984,40.8,3746.0,3745.9,0.8865]
[1753904732288,40.8,3746.0,3745.6,4.603]
[1753904732289,0.95602655,3746.4,3746.2,0.8865]
[1753904732488,2.47422655,3746.3,3746.1,1.3952]
[1753904732681,0.9175,3746.1,3745.5,3.2078]
[1753904732886,0.53394,3746.0,3745.7,0.53398]
[1753904733085,1.5182,3745.8,3745.7,1.42048]
[1753904733288,1.5182,3746.0,3745.9,0.8865]
[1753904733487,1.5182,3746.0,3745.9,1.42045]
[1753904733685,0.95602655,3746.6,3746.4,0.53388]
[1753904733886,41.75602655,3746.5,3746.4,0.8865]
[1753904734096,0.53392,3746.2,3745.9,0.8587]
[1753904734289,0.95602655,3746.4,3746.2,0.53391]
[1753904734485,2.46969286,3746.4,3746.3,0.8865]
[1753904734688,0.53395,3745.9,3745.7,1.3952]
[1753904734987,1.5182,3745.8,3745.7,1.3952]
[1753904735182,1.5182,3745.8,3745.6,3.2078]
[1753904735390,1.5182,3745.5,3745.4,1.92922]
[1753904735589,0.95160538,3745.9,3745.3,2.2817]
[1753904735795,2.05215,3745.9,3745.7,2.2817]
[1753904735990,1.5182,3745.8,3745.7,1.3952]
[1753904736190,0.53398,3745.7,3745.3,0.53403]
[1753904736493,0.95160538,3745.6,3745.2,2.81575]
[1753904736694,1.5182,3745.3,3745.2,2.81575]
[1753904737193,0.95160538,3745.8,3745.7,2.2817]
[1753904737392,1.5182,3746.0,3745.8,2.2539]
[1753904737689,1.5182,3745.9,3745.8,2.2817]
[1753904738692,1.40833677,3746.3,3746.0,0.8587]
[1753904738893,1.40833677,3746.5,3746.3,3.67429]
[1753904739092,1.40833677,3746.5,3746.4,2.2817]
[1753904739291,2.4357,3746.5,3746.4,0.8865]
[1753904739496,1.5182,3746.5,3746.4,3.1404]
[1753904739799,1.43173731,3746.6,3746.5,0.53387]
[1753904739995,1.43173731,3746.6,3746.5,2.81557]
[1753904740196,1.5182,3746.6,3746.5,2.81557]
[1753904740393,2.47290467,3746.6,3746.5,2.81557]
[1753904740593,1.5182,3746.6,3746.5,2.81557]
[1753904741196,0.38,3746.7,3746.6,1.3952]
[1753904741399,0.38,3746.7,3746.6,2.2817]
[1753904741604,3.54242478,3746.7,3746.6,0.8865]
[1753904742400,2.62492478,3746.7,3746.6,3.1404]
[1753904742802,1.10672478,3746.7,3746.6,3.1404]
[1753904743504,0.38,3746.7,3746.6,3.1404]
[1753904744200,1.5182,3747.6,3747.4,0.53372]
[1753904744399,3.16192113,3747.5,3747.4,0.53372]
[1753904744903,3.16192113,3747.5,3747.4,1.42022]
[1753904745304,1.5182,3747.4,3747.1,3.2078]
[1753904745604,1.3343,3747.6,3746.9,0.8865]
[1753904745801,0.9175,3747.0,3746.9,1.42031]
[1753904745996,2.4357,3747.0,3746.9,1.42031]
[1753904746198,4.1253,3747.5,3747.2,0.53376]
[1753904746397,2.4357,3747.3,3747.2,0.8865]
[1753904746800,0.53377,3747.2,3746.9,1.3952]
[1753904746997,3.2078,3747.1,3746.4,0.2748]
[1753904747301,3.35885,3746.0,3745.3,1.5372]
[1753904747498,5.54109,3745.6,3745.5,1.5372]
[1753904747697,1.0256,3745.9,3745.5,1.5372]
[1753904747904,1.7993,3745.9,3745.8,2.07117]
[1753904748205,2.8249,3745.9,3745.8,2.07117]
[1753904748505,40.8,3746.2,3746.1,2.9324]
[1753904748696,1.7993,3746.0,3745.9,0.53394]
[1753904748898,2.8249,3746.0,3745.9,0.53394]
[1753904749405,2.8249,3746.0,3745.2,1.33511]
[1753904749406,1.0256,3745.7,3745.1,1.3952]
[1753904749708,1.0256,3745.7,3744.8,1.28705009]
[1753904749709,2.8249,3745.0,3744.8,0.40055009]
[1753904749899,1.0256,3745.6,3745.2,1.5372]
[1753904750203,0.8818,3745.6,3745.5,0.53401]
[1753904750395,2.8249,3745.8,3745.5,1.5372]
[1753904750601,2.8249,3745.6,3745.3,0.53403]
[1753904750800,1.7993,3745.5,3745.3,0.53403]
[1753904751008,2.8249,3745.7,3745.5,0.534]
[1753904751300,3.2078,3745.9,3745.2,0.53404]
[1753904751301,1.9431,3745.4,3745.2,0.53404]
[1753904751504,2.8249,3745.3,3745.2,0.53404]
[1753904751699,3.2078,3745.5,3745.4,4.35292]
[1753904751897,3.2078,3745.5,3745.4,2.07122]
[1753904752101,3.2078,3745.5,3745.4,4.35292]
[1753904752805,1.7993,3746.1,3746.0,2.07114]
[1753904753000,5.0071,3746.2,3746.0,4.35284]
[1753904753200,1.7993,3746.2,3746.0,4.35284]
[1753904753705,2.8249,3746.0,3745.8,0.53396]
[1753904753907,2.8249,3746.1,3746.0,0.53394]
[1753904754101,0.8818,3746.1,3746.0,2.07114]
[1753904754301,3.2078,3746.2,3746.1,3.8189]
[1753904754498,0.53385,3746.7,3746.1,3.8189]
[1753904754709,2.8249,3746.7,3746.6,0.53385]
[1753904754900,19.735,3746.8,3746.6,3.46625]
[1753904755103,2.8249,3746.7,3746.6,0.53385]
[1753904755304,2.8249,3746.6,3746.5,0.53386]
[1753904756006,2.8249,3746.6,3746.1,1.5372]
[1753904756007,19.735,3746.8,3746.7,0.53384]
[1753904756196,20.7606,3746.8,3746.7,0.53384]
[1753904756399,0.53384,3746.7,3746.6,2.07105]
[1753904756600,2.8249,3746.6,3746.5,0.53386]
[1753904757202,2.8249,3746.6,3744.8,20.14255009]
[1753904757203,0.9175,3746.3,3745.9,0.53394]
[1753904757412,3.2078,3746.0,3745.8,0.53396]
[1753904757613,3.2078,3746.0,3745.9,3.8189]
[1753904757814,2.8249,3746.4,3746.3,0.53389]
[1753904758115,5.0071,3746.7,3746.6,2.07105]
[1753904758298,3.2078,3746.7,3746.6,4.35275]
[1753904758501,19.717,3747.2,3747.1,3.46618]
[1753904758700,1.8155,3747.2,3747.1,0.53378]
[1753904759005,1.8155,3747.2,3747.1,3.21118]
[1753904759311,0.72080592,3747.2,3747.1,4.09038]
[1753904759514,3.2078,3747.3,3747.1,2.67898]
[1753904759706,3.2078,3747.3,3747.2,3.88282329]
[1753904759907,4.1115,3747.3,3747.2,0.32622329]
[1753904760205,11.76240481,3747.3,3747.2,0.32622329]
[1753904760410,47.56240481,3747.3,3747.2,0.32622329]
[1753904760611,66.5465,3747.3,3747.2,0.32622329]
[1753904760806,47.56254256,3747.3,3747.2,0.32622329]
[1753904761009,3.2078,3747.3,3747.2,3.88282329]
[1753904761409,6.76169326,3747.3,3747.2,0.32622329]
[1753904761709,6.76169326,3747.3,3746.6,2.1452]
[1753904761710,1.8155,3747.2,3747.0,0.53378]
[1753904762017,3.2078,3747.3,3747.1,0.53377]
[1753904762211,3.2078,3747.3,3747.2,3.5566]
[1753904764011,3.2078,3747.8,3747.7,0.53369]
[1753904764217,3.2078,3748.4,3748.2,0.53362]
[1753904764416,3.2078,3748.4,3747.8,1.33419]
[1753904764417,3.2078,3748.4,3748.3,3.5566]
[1753904764716,4.1232,3748.4,3748.3,3.5566]
[1753904764910,4.1232,3748.4,3748.3,1.4114]
[1753904765111,6.0501,3748.4,3748.3,1.4114]
[1753904765504,2.8423,3748.3,3748.0,2.67885]
[1753904765704,1.8191,3748.2,3748.0,0.53365]
[1753904765918,3.2078,3748.4,3748.2,0.53362]
[1753904766111,3.2078,3748.4,3748.3,3.5566]
[1753904766307,6.0501,3748.4,3748.3,1.4114]
[1753904766509,0.9154,3748.1,3748.0,2.2906]
[1753904766718,2.8423,3748.1,3748.0,1.4114]
[1753904766913,3.37594,3748.1,3748.0,1.4114]
[1753904767121,3.37598,3747.8,3747.6,0.8792]
[1753904767320,5.1464,3747.7,3747.6,0.8792]
[1753904767518,6.58381,3747.7,3747.5,2.2906]
[1753904767717,6.58381,3747.7,3747.5,3.5566]
[1753904768014,6.58381,3747.7,3746.7,4.54238]
[1753904768015,0.53378,3747.2,3746.9,0.5338]
[1753904768219,3.2078,3747.4,3747.3,3.5566]
[1753904769117,3.2078,3747.4,3746.9,2.1452]
[1753904769418,5.0269,3747.0,3746.9,1.4114]
[1753904769613,4.1115,3747.0,3746.8,0.53381]
[1753904769818,4.1115,3747.0,3746.8,4.09041]
[1753904770014,1.9386,3747.3,3747.0,3.21119]
[1753904770216,2.47239,3747.1,3746.5,2.1452]
[1753904770520,0.9154,3746.9,3746.7,2.82444]
[1753904770715,19.661,3746.9,3746.2,1.4114]
[1753904770922,0.9154,3746.3,3746.1,0.53391]
[1753904771115,0.53393,3746.1,3745.3,1.33508]
[1753904771320,3.2078,3746.0,3745.9,1.4114]
[1753904771714,3.2078,3746.0,3745.9,3.5566]
[1753904772718,3.2078,3746.5,3745.9,4.6192]
[1753904772920,3.2078,3746.5,3746.0,0.53394]
[1753904773216,3.2078,3746.5,3745.8,2.1452]
[1753904773217,3.2078,3746.5,3746.3,0.53389]
[1753904773517,3.2078,3746.5,3746.4,3.5566]
[1753904773722,4.1232,3746.5,3746.4,0.32282482]
[1753904774022,6.0501,3746.5,3746.4,0.32282482]
[1753904776213,1.33471,3746.4,3745.6,2.2906]
[1753904776422,0.53401,3745.5,3745.4,1.4114]
[1753904776720,0.53402,3745.4,3745.1,4.09067]
[1753904776919,0.53402,3745.4,3744.8,0.40055009]
[1753904776920,1.12669,3744.9,3744.8,0.40055009]
[1753904777120,3.05359,3744.9,3744.8,0.40055009]
[1753904778522,0.53418,3744.3,3744.0,1.4114]
[1753904778720,3.2078,3744.3,3744.2,3.5566]
[1753904779429,3.74198,3744.3,3744.2,3.5566]
[1753904779620,5.7273,3744.3,3743.7,0.8792]
[1753904779922,3.2078,3743.8,3743.7,2.2906]
[1753904780121,3.8004,3743.8,3743.7,2.2906]
[1753904780724,3.8004,3743.8,3743.7,2.82487]
[1753904781324,3.8004,3743.8,3743.7,1.94567]
[1753904781719,3.8004,3743.8,3743.7,4.09087]
[1753904781922,3.2078,3743.8,3743.0,1.266]
[1753904782117,0.5926,3743.3,3743.1,2.82494]
[1753904782326,1.12692,3743.3,3742.9,0.8792]
[1753904782522,3.2078,3743.4,3743.2,0.53433]
[1753904782830,22.8078,3743.4,3743.3,3.5566]
[1753904783024,0.53434,3743.2,3742.4,2.6774]
[1753904783228,2.5195,3743.0,3742.9,0.53437]
[1753904783727,2.5195,3743.0,3742.4,3.5566]
[1753904783926,2.5195,3743.0,3742.9,0.53438]
[1753904784125,5.7273,3743.0,3742.9,0.53438]
[1753904784731,3.2078,3743.0,3742.9,3.5566]
[1753904785615,3.2078,3743.0,3742.9,2.1452]
[1753904785820,3.2078,3743.0,3742.7,0.5344]
[1753904786130,2.5195,3742.8,3742.7,0.5344]
[1753904786328,3.2078,3743.0,3742.9,0.53438]
[1753904786626,3.74217,3743.0,3742.0,1.33628]
[1753904786827,3.74218,3743.0,3742.7,0.5344]
[1753904787025,3.2078,3742.8,3742.7,3.5566]
[1753904787619,3.2078,3742.8,3742.6,0.53442]
[1753904787620,4.231,3742.8,3742.6,0.53442]
[1753904787825,3.2078,3742.8,3742.7,3.5566]
[1753904788436,0.5926,3742.7,3742.6,0.53441]
[1753904788830,3.2078,3742.7,3742.6,4.30611]
[1753904789029,3.8031,3743.1,3742.8,0.53438]
[1753904789224,44.0078,3743.2,3742.9,0.53438]
[1753904789528,19.56,3743.0,3742.6,0.53442]
[1753904789729,3.2078,3742.7,3742.6,2.09182]
[1753904789925,4.6874,3742.7,3742.6,2.09182]
[1753904790229,3.2078,3742.7,3742.6,0.53442]
[1753904790426,3.2078,3742.7,3742.6,4.30612]
[1753904791031,1.0262,3742.3,3742.2,1.5574]
[1753904791323,2.5058,3742.2,3742.1,0.53448]
[1753904791523,19.529,3742.4,3742.0,3.7717]
[1753904791733,19.529,3742.4,3742.3,0.53447]
[1753904791922,22.7368,3742.4,3742.3,4.30617]
[1753904792225,2.5058,3742.3,3742.2,0.53447]
[1753904792432,2.5058,3742.1,3742.0,0.5345]
[1753904792926,2.5058,3742.0,3741.8,0.40087123]
[1753904793126,46.5136,3741.9,3741.8,0.40087123]
[1753904793327,46.5136,3741.9,3741.8,1.95827123]
[1753904793527,46.5136,3741.9,3741.8,4.17257123]
[1753904793727,44.6031,3741.9,3741.8,4.17257123]
[1753904794330,44.6031,3741.9,3741.8,2.85817123]
[1753904794527,44.6031,3741.9,3741.8,0.40087123]
[1753904794528,46.5136,3741.9,3741.8,0.40087123]
[1753904796126,44.0078,3741.9,3741.8,4.17257123]
[1753904796428,3.2078,3742.3,3742.2,4.30618]
[1753904796826,0.5953,3742.2,3741.9,2.2143]
[1753904797029,44.0078,3742.3,3742.2,0.53448]
[1753904797226,44.0078,3742.3,3742.2,2.74878]
[1753904797428,44.0078,3742.3,3742.2,4.30618]
[1753904797631,3.2078,3742.3,3742.2,4.30618]
[1753904797824,1.43173731,3744.7,3742.2,4.30618]
[1753904797825,1.4796,3743.3,3742.7,2.2143]
[1753904798028,19.506,3743.2,3743.1,3.7717]
[1753904798239,22.7138,3743.2,3743.1,3.7717]
[1753904798630,3.2078,3743.2,3743.1,3.7717]
[1753904800140,0.5953,3743.7,3743.4,0.5343]
[1753904800437,0.8843,3743.6,3743.5,1.5574]
[1753904800739,0.8843,3743.6,3743.5,4.7652]